bitfinex-derivatives/quotes_BTCF0:USTF0_20250904
["timestamp","ask_amount","ask_price","bid_price","bid_amount"]
[1757007080061,0.67432,109810.0,109800.0,2.3599923]
[1757007080264,0.68442,109810.0,109800.0,2.3599923]
[1757007080772,0.68442,109810.0,109800.0,2.3589923]
[1757007081860,0.68442,109810.0,109800.0,2.4136323]
[1757007082154,0.68442,109810.0,109800.0,2.4133923]
[1757007082564,0.68442,109810.0,109800.0,2.57618216]
[1757007083367,0.68442,109810.0,109800.0,2.4133923]
[1757007089263,0.37442,109810.0,109800.0,2.4133923]
[1757007089463,0.08442,109810.0,109800.0,2.4133923]
[1757007089670,0.66442,109810.0,109800.0,2.4133923]
[1757007089968,0.12442,109810.0,109800.0,2.4133923]
[1757007090468,0.66442,109810.0,109800.0,2.4133923]
[1757007090670,0.12442,109810.0,109800.0,2.4133923]
[1757007090865,0.36442,109810.0,109800.0,2.4133923]
[1757007091067,0.12442,109810.0,109800.0,2.80213212]
[1757007091265,0.07042,109810.0,109800.0,2.80213212]
[1757007091568,0.0001,109810.0,109800.0,2.96492198]
[1757007092469,0.0001,109810.0,109800.0,2.96592198]
[1757007092665,0.00013655,109820.0,109800.0,3.30697468]
[1757007092870,0.65013655,109820.0,109810.0,0.80398404]
[1757007093063,0.65013655,109820.0,109810.0,1.59398404]
[1757007093674,0.65013655,109820.0,109810.0,1.25524422]
[1757007093862,0.65013655,109820.0,109810.0,2.08868422]
[1757007094690,0.65013655,109820.0,109810.0,2.48642404]
[1757007095865,0.65013655,109820.0,109810.0,1.65298404]
[1757007096069,0.65013655,109820.0,109810.0,2.48638404]
[1757007096469,0.65013655,109820.0,109810.0,2.708034]
[1757007099680,0.65013655,109820.0,109810.0,2.03055436]
[1757007099872,0.65013655,109820.0,109810.0,2.707994]
[1757007100965,0.65013655,109820.0,109810.0,2.367994]
[1757007101366,0.65013655,109820.0,109810.0,2.787994]
[1757007101567,0.65013655,109820.0,109810.0,2.44925418]
[1757007101773,0.65013655,109820.0,109810.0,2.787994]
[1757007107583,0.65013655,109820.0,109810.0,1.71043436]
[1757007107785,0.65013655,109820.0,109810.0,2.387914]
[1757007107985,0.65013655,109820.0,109810.0,2.04917418]
[1757007108484,0.65013655,109820.0,109810.0,1.21589418]
[1757007108684,0.65013655,109820.0,109810.0,2.04917418]
[1757007109484,0.49013655,109820.0,109810.0,2.387914]
[1757007110181,0.51013655,109820.0,109810.0,2.387914]
[1757007110386,0.00013655,109820.0,109810.0,2.8517471]
[1757007110984,0.00013655,109820.0,109810.0,2.737914]
[1757007111576,0.00013655,109820.0,109810.0,2.738914]
[1757007111776,0.00023655,109820.0,109810.0,2.738914]
[1757007112884,0.00023655,109820.0,109810.0,2.739914]
[1757007113387,0.00023655,109820.0,109810.0,2.739874]
[1757007113887,0.68023655,109820.0,109810.0,2.739874]
[1757007114279,0.68023655,109820.0,109810.0,2.738874]
[1757007114480,0.00023655,109820.0,109810.0,2.738874]
[1757007114691,0.61023655,109820.0,109810.0,2.737874]
[1757007115693,0.00023655,109820.0,109810.0,2.737874]
[1757007116680,0.00023655,109820.0,109810.0,2.90066386]
[1757007117189,0.54023655,109820.0,109810.0,2.90066386]
[1757007117592,0.66023655,109820.0,109810.0,2.90066386]
[1757007118386,0.00023655,109820.0,109810.0,2.90066386]
[1757007118990,0.00023655,109820.0,109810.0,2.90166386]
[1757007119391,0.00023655,109820.0,109810.0,2.90266386]
[1757007120183,0.00023655,109820.0,109810.0,2.06942386]
[1757007120388,0.00023655,109820.0,109810.0,2.90262386]
[1757007121292,0.00023655,109820.0,109810.0,2.65262386]
[1757007121981,0.16023655,109820.0,109810.0,1.27963964]
[1757007122181,0.73264619,109820.0,109810.0,0.59487395]
[1757007122391,0.73264619,109820.0,109810.0,1.60402391]
[1757007122392,0.96390637,109820.0,109810.0,1.60402391]
[1757007122592,0.61390637,109820.0,109810.0,1.60402391]
[1757007123394,0.61390637,109820.0,109810.0,1.60302391]
[1757007123693,0.61377698,109820.0,109810.0,1.25075409]
[1757007124094,0.61377698,109820.0,109810.0,1.24975409]
[1757007124291,0.61377698,109820.0,109810.0,1.19075409]
[1757007124497,1.27377698,109820.0,109810.0,1.19075409]
[1757007125197,1.27377698,109820.0,109810.0,0.33562409]
[1757007125390,1.27377698,109820.0,109810.0,1.16882409]
[1757007125589,1.27377698,109820.0,109810.0,0.33562409]
[1757007125791,1.27377698,109820.0,109810.0,0.22164996]
[1757007125990,1.27377698,109820.0,109810.0,1.05484996]
[1757007126689,0.01291,109810.0,109800.0,2.09516409]
[1757007126995,0.99162043,109810.0,109800.0,2.92826409]
[1757007127499,0.65301,109810.0,109800.0,2.81428996]
[1757007127802,0.99162043,109810.0,109800.0,2.81428996]
[1757007129894,0.99162043,109810.0,109800.0,2.81432996]
[1757007130391,0.99162043,109810.0,109800.0,2.23108996]
[1757007130793,0.99162043,109810.0,109800.0,3.06432996]
[1757007131493,0.03493,109800.0,109790.0,0.13667413]
[1757007131693,0.37364043,109800.0,109790.0,1.21971413]
[1757007131885,0.37364043,109800.0,109790.0,1.11918]
[1757007132089,0.19212,109800.0,109790.0,1.11918]
[1757007132697,0.02212,109800.0,109790.0,1.11918]
[1757007132897,0.20212,109800.0,109790.0,1.11918]
[1757007133196,0.02212,109800.0,109790.0,1.11918]
[1757007133392,0.02212,109800.0,109790.0,1.54885123]
[1757007133599,0.02212,109800.0,109790.0,1.11918]
[1757007133798,0.02212,109800.0,109790.0,1.45779043]
[1757007134700,0.02212,109800.0,109790.0,1.11918]
[1757007135598,0.02212,109800.0,109790.0,1.23315413]
[1757007136195,0.0001,109800.0,109790.0,1.91282536]
[1757007136399,0.0001,109800.0,109790.0,2.27282536]
[1757007136898,0.0001,109800.0,109790.0,1.79885123]
[1757007138405,0.0001,109800.0,109790.0,2.23251556]
[1757007139002,0.0001,109800.0,109790.0,2.19533123]
[1757007139300,0.0001,109800.0,109790.0,2.35812109]
[1757007140102,0.0001,109800.0,109790.0,2.19533123]
[1757007140803,0.0001,109800.0,109790.0,1.58374119]
[1757007140994,0.0001,109800.0,109790.0,2.57981105]
[1757007144596,0.0001,109800.0,109790.0,2.57977105]
[1757007145504,0.0001,109800.0,109790.0,2.60089067]
[1757007146709,0.0001,109800.0,109790.0,2.43810081]
[1757007147601,0.0001,109800.0,109790.0,2.58920081]
[1757007147910,0.0001,109800.0,109790.0,2.43910081]
[1757007148110,0.0001,109800.0,109790.0,2.44010081]
[1757007148512,0.0001,109800.0,109790.0,2.55380924]
[1757007149011,0.0001,109800.0,109790.0,2.44010081]
[1757007149312,0.0001,109800.0,109790.0,2.55380924]
[1757007151211,0.0001,109800.0,109790.0,1.72056924]
[1757007151611,0.0001,109800.0,109790.0,2.55376924]
[1757007154614,0.0001,109800.0,109790.0,1.72056924]
[1757007154815,0.0001,109800.0,109790.0,2.55376924]
[1757007155509,0.0001,109800.0,109790.0,2.60285067]
[1757007156404,0.0001,109800.0,109790.0,2.60281067]
[1757007157015,0.0001,109800.0,109790.0,1.76965067]
[1757007157218,0.0001,109800.0,109790.0,1.42858987]
[1757007157418,0.0001,109800.0,109790.0,1.08997944]
[1757007157618,0.0001,109800.0,109790.0,2.26174987]
[1757007158119,0.0001,109800.0,109790.0,2.35280677]
[1757007158909,0.0001,109800.0,109790.0,2.35180677]
[1757007159109,0.0001,109800.0,109790.0,2.35080677]
[1757007159725,0.0001,109800.0,109790.0,2.01219634]
[1757007159919,0.0001,109800.0,109790.0,2.27432677]
[1757007162716,0.0001,109800.0,109790.0,2.27428677]
[1757007162916,0.0001,109800.0,109790.0,1.84461944]
[1757007163118,0.0001,109800.0,109790.0,2.18322987]
[1757007163517,0.0001,109800.0,109790.0,1.77044001]
[1757007164122,0.02159,109800.0,109790.0,0.93732001]
[1757007164322,0.02159,109800.0,109790.0,1.93322987]
[1757007164526,0.02159,109800.0,109790.0,2.02428447]
[1757007164824,0.02159,109800.0,109790.0,2.00316485]
[1757007166419,0.0001,109800.0,109790.0,2.00316485]
[1757007166921,0.0001,109800.0,109790.0,1.84037499]
[1757007167617,0.0001,109800.0,109790.0,2.00416485]
[1757007168119,0.0001,109800.0,109790.0,2.00516485]
[1757007168326,0.0001,109800.0,109790.0,2.25516485]
[1757007168721,0.0001,109800.0,109790.0,2.50516485]
[1757007169428,0.0001,109800.0,109790.0,2.34237499]
[1757007170722,0.0001,109800.0,109790.0,2.43345381]
[1757007171832,0.0001,109800.0,109790.0,2.58533381]
[1757007172131,0.0001,109800.0,109790.0,1.99672338]
[1757007172334,0.0001,109800.0,109790.0,2.24421499]
[1757007172720,0.0001,109800.0,109790.0,1.90560456]
[1757007172936,0.0001,109800.0,109790.0,1.41113479]
[1757007173138,0.0001,109800.0,109790.0,2.24421479]
[1757007173733,0.1801,109800.0,109790.0,2.24421479]
[1757007173930,0.0001,109800.0,109790.0,2.24421479]
[1757007174438,0.0001,109800.0,109790.0,0.97946996]
[1757007174741,0.0001,109800.0,109790.0,2.15116039]
[1757007176532,0.0001,109800.0,109790.0,2.31395025]
[1757007176735,0.0001,109800.0,109790.0,2.40500455]
[1757007177333,0.00609718,109800.0,109790.0,2.40500455]
[1757007179332,0.00609718,109800.0,109790.0,1.14225982]
[1757007179538,0.37898761,109800.0,109790.0,1.12881982]
[1757007179729,0.63898761,109800.0,109790.0,1.59467371]
[1757007180028,0.30037718,109800.0,109790.0,1.59467371]
[1757007180937,0.30037718,109800.0,109790.0,0.76007371]
[1757007181139,0.30037718,109800.0,109790.0,1.59467371]
[1757007181330,0.38470718,109800.0,109790.0,1.34467371]
[1757007182128,0.38470718,109800.0,109790.0,1.35853371]
[1757007182438,0.11178718,109800.0,109790.0,1.63631844]
[1757007183129,0.11178718,109800.0,109790.0,1.29770801]
[1757007183331,0.11178718,109800.0,109790.0,1.54526414]
[1757007183531,0.11178718,109800.0,109790.0,1.63631844]
[1757007183732,0.11178718,109800.0,109790.0,1.54526414]
[1757007184239,0.10579,109800.0,109790.0,1.63631844]
[1757007184429,0.10579,109800.0,109790.0,1.88631844]
[1757007184740,0.08443,109800.0,109790.0,2.08227469]
[1757007185331,0.08443,109800.0,109790.0,2.19629066]
[1757007185639,0.08443,109800.0,109790.0,2.78488003]
[1757007186137,0.08443,109800.0,109790.0,2.78588003]
[1757007186540,0.08443,109800.0,109790.0,2.78748003]
[1757007187034,0.08443,109800.0,109790.0,2.78848003]
[1757007187234,0.08443,109800.0,109790.0,2.85620003]
[1757007187434,0.08443,109800.0,109790.0,2.74218406]
[1757007188333,0.08443,109800.0,109790.0,1.90598406]
[1757007188538,0.08443,109800.0,109790.0,2.74202406]
[1757007191343,0.08443,109800.0,109790.0,2.90481392]
[1757007196845,0.08443,109800.0,109790.0,2.74202406]
[1757007198042,0.08443,109800.0,109790.0,2.58310288]
[1757007198241,0.08443,109800.0,109790.0,2.69709114]
[1757007198948,0.08443,109800.0,109790.0,2.69657114]
[1757007199641,0.08443,109800.0,109790.0,2.69857114]
[1757007199843,0.08443,109800.0,109790.0,2.58458288]
[1757007200142,0.08443,109800.0,109790.0,1.74906288]
[1757007200346,0.08443,109800.0,109790.0,1.74806288]
[1757007200546,0.08443,109800.0,109790.0,1.74706288]
[1757007200747,0.08443,109800.0,109790.0,2.58234288]
[1757007202753,0.08443,109800.0,109790.0,2.58134288]
[1757007202956,0.08443,109800.0,109790.0,2.58334288]
[1757007203454,0.08443,109800.0,109790.0,2.58326288]
[1757007203753,0.08443,109800.0,109790.0,2.58226288]
[1757007204255,0.08443,109800.0,109790.0,2.6962386]
[1757007204763,0.08443,109800.0,109790.0,1.8610386]
[1757007204958,0.08443,109800.0,109790.0,2.6961586]
[1757007205256,0.08443,109800.0,109790.0,2.74502359]
[1757007205646,0.08443,109800.0,109790.0,1.81882477]
[1757007205847,0.08443,109800.0,109790.0,2.65394477]
[1757007206054,0.08443,109800.0,109790.0,2.31534487]
[1757007206254,0.08443,109800.0,109790.0,1.48022487]
[1757007206455,0.74443,109800.0,109790.0,1.38917057]
[1757007206650,1.7076698,109800.0,109790.0,0.59069732]
[1757007206955,1.7076698,109800.0,109790.0,1.26309661]
[1757007206956,1.03047,109800.0,109790.0,1.26309661]
[1757007207145,1.7076698,109800.0,109790.0,1.14910996]
[1757007207352,1.7076698,109800.0,109790.0,1.0414594]
[1757007207555,1.7076698,109800.0,109790.0,0.2062194]
[1757007207857,1.7076698,109800.0,109790.0,0.7652194]
[1757007208858,1.7076698,109800.0,109790.0,0.1159994]
[1757007209057,1.7076698,109800.0,109790.0,0.002]
[1757007209058,2.0462697,109800.0,109790.0,0.002]
[1757007209262,2.0462697,109800.0,109790.0,0.83356]
[1757007209457,2.0462697,109800.0,109790.0,0.00655]
[1757007209458,1.7076698,109800.0,109790.0,0.00655]
[1757007212154,1.03047,109800.0,109790.0,0.00655]
[1757007212555,1.7076698,109800.0,109790.0,0.00655]
[1757007212857,1.7076698,109800.0,109790.0,0.02957]
[1757007217063,0.78047,109800.0,109790.0,0.27957]
[1757007217262,1.4576698,109800.0,109790.0,0.27957]
[1757007220966,0.78047,109800.0,109790.0,0.27957]
[1757007221273,1.4576698,109800.0,109790.0,0.27957]
[1757007222871,0.78047,109800.0,109790.0,0.27957]
[1757007223083,1.4576698,109800.0,109790.0,0.27957]
[1757007223872,1.4576698,109800.0,109790.0,0.50121996]
[1757007238486,1.4576698,109800.0,109790.0,0.76491996]
[1757007238487,0.76775,109800.0,109790.0,0.76491996]
[1757007238784,1.1063499,109800.0,109790.0,1.21751926]
[1757007238983,0.76775,109800.0,109790.0,1.10351986]
[1757007239178,1.1063499,109800.0,109790.0,1.10351986]
[1757007239378,0.76775,109800.0,109790.0,1.23561647]
[1757007239580,0.08443,109800.0,109790.0,1.0869236]
[1757007239884,0.3612199,109810.0,109800.0,0.03702]
[1757007240187,0.66262,109810.0,109800.0,1.60723638]
[1757007240391,1.0012199,109810.0,109800.0,1.26863648]
[1757007240582,0.66262,109810.0,109800.0,1.65723638]
[1757007240883,1.0012199,109810.0,109800.0,2.19723638]
[1757007241086,1.0012199,109810.0,109800.0,2.20178638]
[1757007241484,1.0012199,109810.0,109800.0,1.72178638]
[1757007242474,1.0012199,109810.0,109800.0,0.54878648]
[1757007242779,1.0012199,109810.0,109800.0,0.54516977]
[1757007242780,1.0142799,109810.0,109800.0,0.54516977]
[1757007242980,1.0142799,109810.0,109800.0,1.37956977]
[1757007244084,1.0142799,109810.0,109800.0,0.54516977]
[1757007244286,1.0142799,109810.0,109800.0,1.38020977]
[1757007244588,1.0142799,109810.0,109800.0,1.38016977]
[1757007244787,0.67568,109810.0,109800.0,1.11586977]
[1757007244983,1.0012199,109810.0,109800.0,1.11586977]
[1757007245176,1.0012199,109810.0,109800.0,1.45446967]
[1757007245379,1.0012199,109810.0,109800.0,1.11586977]
[1757007245579,1.0012199,109810.0,109800.0,1.45446967]
[1757007246493,1.0012199,109810.0,109800.0,1.11586977]
[1757007247388,0.66262,109810.0,109800.0,1.11586977]
[1757007247591,1.00129579,109810.0,109800.0,1.11586977]
[1757007247890,0.66262,109810.0,109800.0,1.11586977]
[1757007250685,0.66262,109810.0,109800.0,1.38016977]
[1757007250894,0.66262,109810.0,109800.0,1.96884556]
[1757007251088,0.66262,109810.0,109800.0,1.63016977]
[1757007253486,0.19,109810.0,109800.0,2.05989166]
[1757007253687,0.19,109810.0,109800.0,2.65989166]
[1757007254087,0.00664743,109820.0,109800.0,2.65989166]
[1757007254286,0.68262,109820.0,109810.0,0.15119529]
[1757007254488,0.68262,109820.0,109810.0,0.25757858]
[1757007255998,1.28761312,109820.0,109810.0,0.22055858]
[1757007256199,0.03619,109810.0,109800.0,0.32374119]
[1757007256395,0.03619,109810.0,109800.0,1.25208448]
[1757007256396,1.04486579,109810.0,109800.0,1.25208448]
[1757007256698,1.04486579,109810.0,109800.0,0.41632448]
[1757007256899,0.80486579,109810.0,109800.0,1.25208448]
[1757007257200,0.97486579,109810.0,109800.0,1.25200448]
[1757007257396,0.97486579,109810.0,109800.0,1.25196448]
[1757007257592,0.97486579,109810.0,109800.0,0.41632448]
[1757007257793,0.97486579,109810.0,109800.0,1.25188448]
[1757007258893,0.97486579,109810.0,109800.0,0.41632448]
[1757007259096,0.97496579,109810.0,109800.0,0.41632448]
[1757007259688,0.97496579,109810.0,109800.0,0.42970448]
[1757007260396,0.97496579,109810.0,109800.0,0.39397448]
[1757007260801,1.22496579,109810.0,109800.0,1.12311119]
[1757007261096,1.22496579,109810.0,109800.0,0.28759119]
[1757007262294,2.39924158,109810.0,109800.0,0.02329119]
[1757007266706,2.39924158,109810.0,109800.0,0.11093329]
[1757007266904,2.39924158,109810.0,109800.0,0.12964326]
[1757007267990,2.39924158,109810.0,109800.0,0.12917109]
[1757007268602,2.39924158,109810.0,109800.0,0.12462109]
[1757007269004,2.39924158,109810.0,109800.0,0.12512519]
[1757007269206,2.39892158,109810.0,109800.0,0.12512519]
[1757007270102,1.56364158,109810.0,109800.0,0.12497119]
[1757007270306,2.39884158,109810.0,109800.0,0.12497119]
[1757007270694,2.39884158,109810.0,109800.0,0.11093329]
[1757007271099,2.39884158,109810.0,109800.0,0.12952119]
[1757007271598,2.39884158,109810.0,109800.0,0.11093329]
[1757007272407,2.39884158,109810.0,109800.0,0.12955924]
[1757007272706,2.39884158,109810.0,109800.0,0.12910641]
[1757007273408,2.39944158,109810.0,109800.0,0.11093329]
[1757007273608,2.39944158,109810.0,109800.0,0.12907418]
[1757007274703,2.39944158,109810.0,109800.0,0.12905041]
[1757007275403,2.39944158,109810.0,109800.0,0.11093329]
[1757007275601,2.39944158,109810.0,109800.0,0.12905041]
[1757007276306,2.39944158,109810.0,109800.0,0.12938537]
[1757007277011,2.39944158,109810.0,109800.0,0.12918293]
[1757007277202,1.56364158,109810.0,109800.0,0.12918293]
[1757007277401,2.39920158,109810.0,109800.0,0.12918293]
[1757007277807,2.39916158,109810.0,109800.0,0.12918293]
[1757007278002,2.39916158,109810.0,109800.0,0.11093329]
[1757007278203,2.39916158,109810.0,109800.0,0.1295403]
[1757007278405,2.39916158,109810.0,109800.0,0.11093329]
[1757007278604,2.39916158,109810.0,109800.0,0.1295403]
[1757007279911,2.39916158,109810.0,109800.0,0.12937875]
[1757007280509,2.39900158,109810.0,109800.0,0.12937875]
[1757007281011,2.39900158,109810.0,109800.0,0.12967301]
[1757007281598,2.39900158,109810.0,109800.0,0.11093329]
[1757007282109,2.39900158,109810.0,109800.0,0.12967301]
[1757007282298,2.39900158,109810.0,109800.0,0.12913347]
[1757007283211,2.39900158,109810.0,109800.0,0.12926898]
[1757007283998,2.14900158,109810.0,109800.0,0.12926898]
[1757007284207,2.14900158,109810.0,109790.0,0.0002]
[1757007284411,0.70048158,109800.0,109790.0,0.0002]
[1757007284610,0.03368,109790.0,109780.0,0.33856776]
[1757007284811,1.01245579,109790.0,109780.0,0.33836776]
[1757007285611,1.01245579,109790.0,109780.0,0.37663776]
[1757007286313,1.00096579,109790.0,109780.0,0.37663776]
[1757007287105,1.00096579,109790.0,109780.0,0.37863776]
[1757007289216,1.00096579,109790.0,109780.0,0.11433776]
[1757007297415,0.66229,109790.0,109780.0,0.36433776]
[1757007297722,1.00096579,109790.0,109780.0,0.47851305]
[1757007298320,1.00096579,109790.0,109780.0,1.31251305]
[1757007300020,1.00096579,109790.0,109780.0,1.19833776]
[1757007300616,0.66229,109790.0,109780.0,1.19833776]
[1757007300817,1.00096579,109790.0,109780.0,1.48833776]
[1757007301016,1.00096579,109790.0,109780.0,1.75263776]
[1757007301221,1.00096579,109790.0,109780.0,1.21263776]
[1757007302521,0.66229,109790.0,109780.0,1.21263776]
[1757007302828,1.00096579,109790.0,109780.0,1.21263776]
[1757007303327,1.00096579,109790.0,109780.0,1.32681305]
[1757007303726,1.00096579,109790.0,109780.0,1.21263776]
[1757007303929,1.00096579,109790.0,109780.0,0.37863776]
[1757007304125,1.00096579,109790.0,109780.0,1.32681305]
[1757007304520,1.00096579,109790.0,109780.0,1.21263776]
[1757007306029,1.00096579,109790.0,109780.0,0.37863776]
[1757007306220,1.00749579,109790.0,109780.0,0.36482776]
[1757007307038,1.00749579,109790.0,109780.0,0.10052776]
[1757007307534,1.34658442,109790.0,109780.0,0.10052776]
[1757007308535,1.34658442,109790.0,109780.0,0.21470305]
[1757007310141,1.34658442,109790.0,109780.0,0.19224305]
[1757007310936,1.34658442,109790.0,109780.0,0.21470305]
[1757007315037,1.34658442,109790.0,109780.0,0.19224305]
[1757007319948,1.00117221,109790.0,109780.0,0.22842305]
[1757007320446,1.00117221,109790.0,109780.0,1.06234305]
[1757007321046,0.66229,109790.0,109780.0,1.40122526]
[1757007321241,1.00117221,109790.0,109780.0,1.40122526]
[1757007322643,1.00117221,109790.0,109780.0,1.06234305]
[1757007322846,1.00117221,109790.0,109780.0,1.40122526]
[1757007323045,0.6401,109790.0,109780.0,1.74228856]
[1757007323350,0.97898221,109790.0,109780.0,1.74228856]
[1757007323550,0.0001,109790.0,109780.0,2.40117077]
[1757007324052,0.0001,109790.0,109780.0,2.08117077]
[1757007324252,0.0001,109790.0,109780.0,1.96699548]
[1757007324841,0.0001,109790.0,109780.0,2.23129548]
[1757007328255,0.0001,109790.0,109780.0,1.55353106]
[1757007328456,0.0001,109790.0,109780.0,2.23129548]
[1757007330160,0.0001,109790.0,109780.0,2.54129548]
[1757007332461,0.0001,109790.0,109780.0,1.70737548]
[1757007332663,0.0001,109790.0,109780.0,2.70401619]
[1757007333362,0.0001,109790.0,109780.0,2.54117548]
[1757007333968,0.0001,109790.0,109780.0,2.63185548]
[1757007338657,0.0001,109790.0,109780.0,2.63181548]
[1757007340560,0.0001,109790.0,109780.0,2.79465619]
[1757007341465,0.0001,109790.0,109780.0,1.28313177]
[1757007341765,0.0001,109790.0,109780.0,2.79461619]
[1757007344074,0.36121221,109810.0,109800.0,0.0139]
[1757007344370,1.01121221,109810.0,109800.0,1.81192442]
[1757007344572,1.01121221,109810.0,109800.0,1.58689754]
[1757007344764,1.01121221,109810.0,109800.0,1.67794424]
[1757007344959,0.65,109810.0,109800.0,1.67794424]
[1757007345165,0.98888221,109810.0,109800.0,1.67794424]
[1757007345566,0.98888221,109810.0,109800.0,1.41364424]
[1757007345964,0.98888221,109810.0,109800.0,1.29978891]
[1757007346164,0.98888221,109810.0,109800.0,1.41360937]
[1757007346365,0.98988221,109810.0,109800.0,1.41360937]
[1757007346570,0.651,109810.0,109800.0,1.41360937]
[1757007346772,0.651,109810.0,109800.0,2.25249158]
[1757007346969,0.651,109810.0,109800.0,2.13867112]
[1757007347179,0.651,109810.0,109800.0,1.4609067]
[1757007347470,0.651,109810.0,109800.0,2.25242892]
[1757007347676,0.651,109810.0,109800.0,2.27094783]
[1757007347972,0.581,109810.0,109800.0,2.27094783]
[1757007348764,0.681,109810.0,109800.0,2.27094783]
[1757007348964,0.141,109810.0,109800.0,2.27094783]
[1757007349365,0.141,109810.0,109800.0,2.15715003]
[1757007349872,0.141,109810.0,109800.0,2.40715003]
[1757007350059,0.141,109810.0,109800.0,1.57351003]
[1757007350261,0.141,109810.0,109800.0,1.73666021]
[1757007350461,0.141,109810.0,109800.0,2.41442463]
[1757007350875,0.14,109810.0,109800.0,2.41442463]
[1757007351070,0.14,109810.0,109800.0,2.57726534]
[1757007351270,0.133,109810.0,109800.0,2.57726534]
[1757007351772,0.133,109810.0,109800.0,2.64490534]
[1757007351970,0.133,109810.0,109800.0,2.63759074]
[1757007352273,0.133,109810.0,109800.0,2.63659074]
[1757007352576,0.36748029,109830.0,109820.0,0.03467]
[1757007352779,1.01748029,109830.0,109820.0,1.20715221]
[1757007353163,1.01748029,109830.0,109820.0,1.20739221]
[1757007353875,1.01848029,109830.0,109820.0,1.20739221]
[1757007355876,0.67959808,109830.0,109820.0,1.20739221]
[1757007356078,1.01848029,109830.0,109820.0,1.20739221]
[1757007357076,0.67959808,109830.0,109820.0,1.20739221]
[1757007357280,1.01848029,109830.0,109820.0,1.20739221]
[1757007359980,1.01848029,109830.0,109820.0,0.37355221]
[1757007360181,1.01848029,109830.0,109820.0,1.20707221]
[1757007360681,0.67959808,109830.0,109820.0,1.63707221]
[1757007360976,1.01848029,109830.0,109820.0,0.06467]
[1757007361179,1.02784029,109830.0,109820.0,0.86819]
[1757007361584,0.67959808,109830.0,109820.0,0.86819]
[1757007361781,1.01848029,109830.0,109820.0,0.86819]
[1757007363276,1.6210225,109830.0,109820.0,0.85572]
[1757007363477,1.6211225,109830.0,109820.0,0.85572]
[1757007363677,1.6211225,109830.0,109820.0,0.856]
[1757007364980,1.28224029,109830.0,109820.0,0.02204]
[1757007365179,1.28224029,109830.0,109820.0,0.8558]
[1757007365376,1.6211225,109830.0,109820.0,0.85576]
[1757007366086,1.28224029,109830.0,109820.0,0.85576]
[1757007366284,1.6211225,109830.0,109820.0,0.85576]
[1757007369289,1.28224029,109830.0,109820.0,0.85576]
[1757007369490,1.28197019,109830.0,109820.0,0.86839]
[1757007369673,1.26831019,109830.0,109820.0,0.86839]
[1757007370596,0.92969808,109830.0,109820.0,0.86839]
[1757007370888,1.26831019,109830.0,109820.0,0.86839]
[1757007374990,1.28116019,109830.0,109820.0,0.85576]
[1757007376484,1.6197723,109830.0,109810.0,0.96073763]
[1757007376685,0.36033211,109820.0,109810.0,0.86989]
[1757007376891,1.01043211,109820.0,109810.0,0.86969]
[1757007377782,1.01043211,109820.0,109810.0,0.98347763]
[1757007378890,1.01143211,109820.0,109810.0,0.98347763]
[1757007379800,0.67282,109820.0,109810.0,0.98347763]
[1757007380090,1.01143211,109820.0,109810.0,0.98347763]
[1757007380992,1.01143211,109820.0,109810.0,0.86969]
[1757007382993,1.00143211,109820.0,109810.0,0.86969]
[1757007383384,0.25282,109820.0,109810.0,1.29934051]
[1757007383678,0.0511,109820.0,109810.0,1.54934051]
[1757007383883,0.4911,109820.0,109810.0,1.54934051]
[1757007384494,0.4911,109820.0,109810.0,1.2107284]
[1757007384791,0.4901,109820.0,109810.0,1.54934051]
[1757007384990,0.4911,109820.0,109810.0,1.54934051]
[1757007390695,0.4911,109820.0,109810.0,2.13934051]
[1757007391690,0.4911,109820.0,109810.0,1.30522051]
[1757007391899,0.4911,109820.0,109810.0,2.14018051]
[1757007395505,0.4911,109820.0,109810.0,1.72018051]
[1757007397602,0.4911,109820.0,109810.0,2.06018051]
[1757007398199,0.4911,109820.0,109810.0,2.22302122]
[1757007400601,0.4911,109820.0,109810.0,2.34460669]
[1757007401297,0.4911,109820.0,109810.0,2.18176598]
[1757007402197,0.4911,109820.0,109810.0,2.17408733]
[1757007406611,0.4911,109820.0,109810.0,2.06018051]
[1757007407010,0.4911,109820.0,109810.0,2.17408733]
[1757007408106,0.251,109820.0,109810.0,2.17408733]
[1757007408304,0.37004211,109860.0,109850.0,0.02195]
[1757007408503,1.02994211,109860.0,109850.0,0.44263]
[1757007409107,1.03769259,109860.0,109850.0,0.51439362]
[1757007409507,1.03769259,109860.0,109850.0,0.52765362]
[1757007410206,1.02818259,109860.0,109850.0,0.52765362]
[1757007412509,0.68957048,109860.0,109850.0,0.52765362]
[1757007412717,1.02818259,109860.0,109850.0,0.52765362]
[1757007412919,1.02818259,109860.0,109850.0,0.10697362]
[1757007413322,1.02818259,109860.0,109850.0,0.94129362]
[1757007415324,1.02818259,109860.0,109850.0,0.92799362]
[1757007415325,1.03831259,109860.0,109850.0,0.92799362]
[1757007415822,1.03831259,109860.0,109850.0,0.92771362]
[1757007416023,1.03831259,109860.0,109850.0,0.09371362]
[1757007416320,1.6269247,109860.0,109850.0,0.07176362]
[1757007416521,1.6269247,109860.0,109840.0,0.76714234]
[1757007416730,0.37334211,109850.0,109840.0,0.78909234]
[1757007417026,1.06334211,109850.0,109840.0,0.78909234]
[1757007417225,1.06334211,109850.0,109840.0,0.80235234]
[1757007418028,1.31334211,109850.0,109840.0,0.94815176]
[1757007418329,1.31334211,109850.0,109840.0,0.83428]
[1757007418832,1.31334211,109850.0,109830.0,0.01326]
[1757007419132,0.36043211,109840.0,109830.0,0.56733522]
[1757007419333,1.00043211,109840.0,109830.0,0.49309]
[1757007421035,0.66182,109840.0,109830.0,0.49309]
[1757007421224,1.00043211,109840.0,109830.0,0.49309]
[1757007422337,0.80043211,109840.0,109830.0,0.49309]
[1757007422533,0.97043211,109840.0,109830.0,0.49309]
[1757007422724,0.97043211,109840.0,109830.0,0.75739]
[1757007423332,0.97043211,109840.0,109830.0,0.29951]
[1757007423535,0.98060211,109840.0,109830.0,0.92991482]
[1757007423735,0.98060211,109840.0,109830.0,0.94317482]
[1757007427633,0.97043211,109840.0,109830.0,0.94317482]
[1757007427838,0.97053211,109840.0,109830.0,0.94317482]
[1757007429038,0.63192,109840.0,109830.0,0.94317482]
[1757007429238,0.97053211,109840.0,109830.0,0.94317482]
[1757007429537,1.30893178,109840.0,109830.0,1.28168071]
[1757007430240,1.30893178,109840.0,109830.0,0.94317482]
[1757007430637,1.30893178,109840.0,109830.0,1.28168071]
[1757007431236,1.30893178,109840.0,109830.0,1.39555247]
[1757007431741,0.97042589,109840.0,109830.0,1.39555247]
[1757007432341,1.30893178,109840.0,109830.0,1.39555247]
[1757007433738,1.30893178,109840.0,109830.0,1.05704658]